bitfinex-derivatives/quotes_ETHF0:USTF0_20251013
["timestamp","ask_amount","ask_price","bid_price","bid_amount"]
[1760394664908,3.59913971,4253.1,4252.6,0.31223688]
[1760394665112,4.02197971,4253.1,4253.0,0.4399]
[1760394665316,4.02197971,4253.1,4253.0,0.1298]
[1760394665508,7.14884279,4253.1,4253.0,0.1298]
[1760394666011,7.14884279,4253.1,4253.0,0.4399]
[1760394668012,7.14884279,4253.1,4252.6,0.00213688]
[1760394668013,0.42287,4252.7,4252.6,0.00213688]
[1760394668316,3.44327226,4252.7,4252.6,0.00213688]
[1760394668518,3.44327226,4252.7,4252.0,0.4399]
[1760394668519,0.42293,4252.1,4252.0,0.4399]
[1760394669510,0.42293,4252.1,4252.0,0.44157726]
[1760394669511,0.42572177,4252.1,4252.0,0.44157726]
[1760394670515,0.00279177,4252.1,4252.0,0.44157726]
[1760394670716,0.00279177,4252.1,4252.0,0.66587726]
[1760394671015,0.00279177,4252.1,4252.0,0.87057726]
[1760394678324,0.00279177,4252.1,4252.0,1.29351726]
[1760394678823,3.2078,4252.6,4252.5,1.29889]
[1760394679523,3.2078,4252.6,4252.5,6.98989]
[1760394679720,0.39133971,4253.1,4253.0,1.29884]
[1760394680026,0.39300166,4253.1,4253.0,6.98984]
[1760394682322,0.39300166,4253.1,4253.0,10.19764]
[1760394683623,0.39300166,4253.1,4253.0,4.50664]
[1760394683825,0.39300166,4253.1,4253.0,10.19764]
[1760394684227,0.39300166,4253.1,4253.0,4.50664]
[1760394684520,0.39300166,4253.1,4253.0,10.19764]
[1760394685119,0.39300166,4253.1,4253.0,4.50664]
[1760394685525,0.39300166,4253.1,4253.0,10.19764]
[1760394686318,0.39300166,4253.1,4253.0,4.50664]
[1760394686522,0.39300166,4253.1,4253.0,10.19764]
[1760394687025,0.39300166,4253.1,4253.0,10.19664]
[1760394687525,0.39300166,4253.1,4253.0,6.98884]
[1760394688519,0.39300166,4253.1,4253.0,1.29884]
[1760394688722,0.39300166,4253.1,4253.0,6.98884]
[1760394692827,0.39300166,4253.1,4253.0,6.566]
[1760394693227,0.39300166,4253.1,4253.0,6.98884]
[1760394693428,0.39300166,4253.1,4253.0,1.29884]
[1760394694127,0.81583166,4253.1,4253.0,0.876]
[1760394694520,0.81583166,4253.1,4253.0,0.4507]
[1760394696131,0.39300166,4253.1,4253.0,1.29884]
[1760394696729,0.81583166,4253.1,4253.0,1.29884]
[1760394699128,0.81583166,4253.1,4253.0,6.98884]
[1760394702337,0.81583166,4253.1,4253.0,6.566]
[1760394702836,0.81583166,4253.1,4253.0,6.98884]
[1760394703934,4.02363166,4253.1,4253.0,0.4507]
[1760394704331,4.02363166,4253.1,4253.0,0.6571]
[1760394704831,3.60080166,4253.1,4253.0,1.29884]
[1760394705040,0.39300166,4253.1,4253.0,1.29884]
[1760394705333,0.81583166,4253.1,4253.0,0.876]
[1760394705541,0.81583166,4253.1,4253.0,0.4507]
[1760394706036,4.39567842,4253.1,4253.0,0.4507]
[1760394706227,0.42286,4252.8,4252.7,0.3385]
[1760394706429,0.42288,4252.6,4252.5,0.4671]
[1760394706633,4.21640844,4252.6,4252.5,0.4671]
[1760394706933,7.27779234,4252.6,4252.5,0.4671]
[1760394707736,7.27779234,4252.6,4252.5,0.1286]
[1760394708136,7.27779234,4252.6,4252.5,0.4671]
[1760394710438,0.42293,4252.1,4252.0,0.13147726]
[1760394710735,3.63073,4252.1,4252.0,0.13147726]
[1760394710936,4.21576795,4252.1,4252.0,0.44787726]
[1760394711137,3.63073,4252.1,4252.0,0.44787726]
[1760394711642,3.63073,4252.1,4252.0,0.65427726]
[1760394713447,0.37753334,4252.3,4252.2,0.735]
[1760394713741,0.80044334,4252.3,4252.2,0.735]
[1760394713938,0.80044334,4252.3,4252.2,1.15792]
[1760394714540,0.37753334,4252.3,4252.2,1.15792]
[1760394714738,0.80044334,4252.3,4252.2,0.735]
[1760394715951,0.80044334,4252.3,4252.2,1.15792]
[1760394716847,0.37753334,4252.3,4252.2,1.15792]
[1760394717142,0.42286,4252.9,4252.5,0.1237]
[1760394717345,0.42286,4252.9,4252.8,0.735]
[1760394717537,0.42285,4253.0,4252.8,0.4186]
[1760394717736,0.42285,4253.0,4252.9,0.3164]
[1760394717943,0.42285,4253.0,4252.9,1.15785]
[1760394718244,0.39300166,4253.1,4253.0,0.8587]
[1760394719248,0.42269,4254.6,4254.5,0.8587]
[1760394720137,0.42554178,4254.6,4254.5,0.8587]
[1760394720737,0.42554178,4254.6,4254.5,0.4401]
[1760394721049,0.42554178,4254.6,4254.5,0.6465]
[1760394721949,0.42554178,4254.6,4254.5,0.8587]
[1760394723944,0.42554178,4254.6,4254.5,0.4401]
[1760394724143,3.47621468,4254.6,4254.5,0.1237]
[1760394724358,4.06057609,4254.6,4254.5,0.1237]
[1760394725249,9.74957609,4254.6,4254.5,0.4401]
[1760394726246,9.74957609,4254.6,4254.5,0.1237]
[1760394726955,9.74957609,4254.6,4254.5,0.4401]
[1760394727151,9.74957609,4254.6,4254.5,0.1237]
[1760394728351,9.74957609,4254.6,4254.5,0.4401]
[1760394729758,9.74957609,4254.6,4254.5,0.1237]
[1760394730755,0.42283,4253.1,4253.0,0.4401]
[1760394730953,9.31863,4253.1,4253.0,0.4401]
[1760394734659,9.31863,4253.1,4253.0,0.8587]
[1760394735665,3.63063,4253.1,4253.0,0.8587]
[1760394735964,3.2078,4253.1,4253.0,0.8587]
[1760394736359,3.63063,4253.1,4253.0,0.8587]
[1760394736757,3.63063,4253.1,4253.0,0.4401]
[1760394736957,3.2078,4253.1,4253.0,0.8745]
[1760394737169,3.63063,4253.1,4253.0,0.8745]
[1760394737961,3.63063,4253.1,4253.0,0.4401]
[1760394738163,3.63063,4253.1,4253.0,0.6492]
[1760394738373,3.63063,4253.1,4253.0,0.8745]
[1760394739059,3.63063,4253.1,4253.0,0.6492]
[1760394739468,3.63063,4253.1,4253.0,0.4401]
[1760394739969,9.31863,4253.1,4253.0,0.4401]
[1760394742065,9.90150004,4253.1,4253.0,0.1237]
[1760394742264,0.42288,4252.6,4252.5,0.1237]
[1760394742468,0.42291,4252.3,4252.2,0.3371]
[1760394742669,0.42287,4252.7,4252.6,0.7715]
[1760394743668,3.2078,4253.1,4252.6,0.7715]
[1760394743971,0.42287,4252.7,4252.6,0.7715]
[1760394744574,3.2078,4253.1,4253.0,0.5668]
[1760394744872,3.2078,4253.1,4253.0,0.9039]
[1760394745069,3.63063,4253.1,4253.0,0.9039]
[1760394746372,0.42283,4253.1,4253.0,0.9039]
[1760394748171,3.63063,4253.1,4253.0,0.9039]
[1760394748871,3.63063,4253.1,4253.0,0.4695]
[1760394749175,3.63063,4253.1,4253.0,0.6786]
[1760394749475,3.63063,4253.1,4253.0,0.9039]
[1760394750477,0.42283,4253.1,4253.0,0.9039]
[1760394750771,8.8968,4253.6,4253.5,0.9039]
[1760394751177,3.63059,4253.6,4253.5,0.9039]
[1760394751371,3.63059,4253.6,4253.5,0.6786]
[1760394751579,4.21402692,4253.6,4253.5,0.6786]
[1760394751771,3.2078,4253.6,4253.5,0.9039]
[1760394752580,0.42278,4253.7,4253.5,0.5668]
[1760394752780,0.42278,4253.7,4253.6,0.7715]
[1760394753281,3.2078,4254.1,4253.0,3.3402]
[1760394753486,3.63059,4253.6,4253.5,0.6786]
[1760394753687,3.63059,4253.6,4253.5,0.9039]
[1760394753986,3.63059,4253.6,4253.5,0.6786]
[1760394754175,3.63059,4253.6,4253.5,0.9039]
[1760394754585,0.42279,4253.6,4253.5,0.9039]
[1760394755785,0.42279,4253.6,4253.5,4.5345]
[1760394756185,0.42279,4253.6,4253.5,1.3267]
[1760394756785,0.42279,4253.6,4253.5,0.9039]
[1760394759482,3.63059,4253.6,4253.5,0.4695]
[1760394759883,3.63059,4253.6,4253.5,0.6786]
[1760394760080,4.21464233,4253.6,4253.5,0.6786]
[1760394760588,3.63059,4253.6,4253.5,0.9039]
[1760394761177,0.42278,4253.7,4253.5,0.9896]
[1760394761382,0.42278,4253.7,4253.6,0.7715]
[1760394761892,0.42554178,4254.6,4254.5,0.9039]
[1760394763289,0.00285178,4254.6,4254.5,0.9039]
[1760394766584,0.42267,4254.8,4254.6,0.42269]
[1760394766788,1.05654,4255.4,4254.5,0.4695]
[1760394766789,0.42265,4255.0,4254.9,0.4297]
[1760394766987,0.42265,4255.0,4254.9,0.7411]
[1760394767188,0.42263,4255.2,4255.1,0.7411]
[1760394767390,0.42261,4255.4,4255.3,0.7411]
[1760394767590,0.42247,4256.8,4256.7,0.223]
[1760394767789,0.57908548,4256.8,4256.7,0.7411]
[1760394768186,0.73288548,4256.8,4256.7,0.7411]
[1760394768782,0.57908548,4256.8,4256.7,0.7411]
[1760394769790,0.42528548,4256.8,4256.7,0.7411]
[1760394771191,0.73208548,4256.8,4256.7,0.7411]
[1760394772292,0.57868548,4256.8,4256.7,0.7411]
[1760394773188,0.73208548,4256.8,4256.7,0.7411]
[1760394775491,0.57868548,4256.8,4256.7,0.7411]
[1760394776290,0.73208548,4256.8,4256.7,0.7411]
[1760394776792,0.57868548,4256.8,4256.7,0.7411]
[1760394778791,0.42528548,4256.8,4256.7,0.7411]
[1760394782990,0.42528548,4256.8,4256.7,1.16358]
[1760394783198,0.00281548,4256.8,4256.7,1.16358]
[1760394783392,0.42528548,4256.8,4256.7,1.16358]
[1760394783897,0.42528548,4256.8,4256.7,6.84858]
[1760394786496,0.42528548,4256.8,4256.7,6.4261]
[1760394786692,0.57868548,4256.8,4256.7,0.7411]
[1760394786893,0.73208548,4256.8,4256.7,0.7411]
[1760394787998,0.42528548,4256.8,4256.7,0.7411]
[1760394789193,0.00281548,4256.8,4256.7,1.16358]
[1760394790100,0.42528548,4256.8,4256.7,1.16358]
[1760394790897,0.00281548,4256.8,4256.7,1.16358]
[1760394791296,0.42528548,4256.8,4256.7,1.16358]
[1760394793101,0.00281548,4256.8,4256.7,1.16358]
[1760394794004,0.42528548,4256.8,4256.7,1.16358]
[1760394794693,3.2078,4257.7,4257.1,0.42243]
[1760394794896,0.42241,4257.4,4257.3,0.2257]
[1760394795104,0.42241,4257.4,4257.3,0.768]
[1760394795396,3.2078,4257.7,4257.6,1.16799]
[1760394795603,3.2078,4257.7,4257.6,0.7456]
[1760394795802,3.2097841,4257.7,4257.6,0.7456]
[1760394796203,3.7915577,4257.7,4257.6,0.7456]
[1760394796501,3.2097841,4257.7,4257.6,0.7456]
[1760394796697,0.0019841,4257.7,4257.6,0.7456]
[1760394797096,0.58406239,4257.7,4257.6,0.7456]
[1760394797697,0.0019841,4257.7,4257.6,0.7456]
[1760394798206,3.2078,4258.7,4258.6,0.7456]
[1760394798499,4.21211461,4258.7,4258.6,0.7456]
[1760394798999,4.21493374,4258.7,4258.6,0.74818057]
[1760394800000,4.41313374,4258.7,4258.6,0.74818057]
[1760394800204,4.61133374,4258.7,4258.6,0.52298057]
[1760394800603,4.73523374,4258.7,4258.6,0.00258057]
[1760394800806,4.73523374,4258.7,4258.6,0.31318057]
[1760394801005,4.61133374,4258.7,4258.6,0.52298057]
[1760394805309,4.61133374,4258.7,4258.6,0.74818057]
[1760394807404,4.41313374,4258.7,4258.6,0.74818057]
[1760394807907,4.21493374,4258.7,4258.6,0.74818057]
[1760394808409,3.63289913,4258.7,4258.6,0.74818057]
[1760394809708,3.83109913,4258.7,4258.6,0.74818057]
[1760394809907,4.02929913,4258.7,4258.6,0.74818057]
[1760394812415,4.60980815,4258.7,4258.6,0.52298057]
[1760394812611,4.73370815,4258.7,4258.6,0.31318057]
[1760394813317,4.73370815,4258.7,4258.6,0.52298057]
[1760394813518,4.60980815,4258.7,4258.6,0.52298057]
[1760394814215,4.02929913,4258.7,4258.6,0.52298057]
[1760394815313,3.83109913,4258.7,4258.6,0.74818057]
[1760394816811,4.02929913,4258.7,4258.6,0.74818057]
[1760394818316,4.02929913,4258.7,4258.6,0.52298057]
[1760394818817,4.15319913,4258.7,4258.6,0.52298057]
[1760394819716,4.02929913,4258.7,4258.6,0.52298057]
[1760394821623,3.63289913,4258.7,4258.6,0.74818057]
[1760394822122,3.83109913,4258.7,4258.6,0.74818057]
[1760394822422,3.63289913,4258.7,4258.6,0.74818057]
[1760394825018,3.83109913,4258.7,4258.6,0.74818057]
[1760394826426,4.14959913,4258.7,4258.6,0.00258057]
[1760394826622,4.14959913,4258.7,4258.6,0.30948057]
[1760394826822,4.02709913,4258.7,4258.6,0.52548057]
[1760394827724,0.00281913,4258.7,4258.6,1.17187057]
[1760394828818,0.00281913,4258.7,4258.6,6.85187057]
[1760394829225,3.82608,4259.7,4259.6,0.7699]
[1760394829433,4.40676741,4259.7,4259.6,0.7699]
[1760394829936,4.21066741,4259.7,4259.6,1.19209]
[1760394830235,3.20979884,4259.7,4259.6,1.19209]
[1760394830433,3.20979884,4259.7,4259.6,0.7699]
[1760394834627,0.00199884,4259.7,4259.6,0.7699]
[1760394835736,0.42417884,4259.7,4259.6,1.19209]
[1760394838642,0.62027884,4259.7,4259.6,1.19209]
[1760394838837,0.62027884,4259.7,4259.6,0.7699]
[1760394839037,0.19809884,4259.7,4259.6,1.19209]
[1760394839241,0.62027884,4259.7,4259.6,1.19209]
[1760394840540,0.42417884,4259.7,4259.6,0.7699]
[1760394841247,0.62027884,4259.7,4259.6,0.7699]
[1760394841543,0.81637884,4259.7,4259.6,0.7699]
[1760394842043,0.81637884,4259.7,4259.6,1.19209]
[1760394842446,0.62027884,4259.7,4259.6,1.19209]
[1760394842944,0.42417884,4259.7,4259.6,1.19209]
[1760394844145,0.62027884,4259.7,4259.6,0.7699]
[1760394844846,0.81637884,4259.7,4259.6,0.7699]
[1760394845148,0.81637884,4259.7,4259.0,3.3386]
[1760394845149,0.81444,4259.1,4259.0,0.5711]
[1760394845343,0.81444,4259.1,4259.0,0.99335]
[1760394845646,0.61834,4259.1,4259.0,1.32295]
[1760394845846,0.42224,4259.1,4259.0,1.32295]
[1760394846247,0.42223,4259.2,4259.1,1.19213]
[1760394846847,0.61833,4259.2,4259.1,0.7699]
[1760394847147,0.81443,4259.2,4259.1,0.7699]
[1760394847746,0.61833,4259.2,4259.1,0.7699]
[1760394847948,0.42223,4259.2,4259.1,1.19214]
[1760394849744,0.61833,4259.2,4259.1,0.7699]
[1760394850048,0.81443,4259.2,4259.1,0.7699]
[1760394850547,0.93693,4259.2,4259.1,0.7699]
[1760394850936,0.81443,4259.2,4259.1,0.5469]
[1760394851141,0.61833,4259.2,4259.1,0.7699]
[1760394851842,0.81443,4259.2,4259.1,0.7699]
[1760394852748,0.42223,4259.2,4259.1,1.19214]
[1760394853343,3.20979884,4259.7,4259.1,0.223]
[1760394853542,3.63197884,4259.7,4259.6,0.7699]
[1760394853748,3.79025121,4259.7,4259.6,1.19209]
[1760394853948,3.20979884,4259.7,4259.6,1.19209]
[1760394854446,3.63197884,4259.7,4259.6,1.19209]
[1760394857248,0.42417884,4259.7,4259.6,1.19209]
[1760394857938,0.42417884,4259.7,4259.6,0.7699]
[1760394858642,0.42417884,4259.7,4259.6,2.46969]
[1760394859753,0.42417884,4259.7,4259.6,2.0475]
[1760394862749,0.42417884,4259.7,4259.6,2.46969]
[1760394863150,0.42417884,4259.7,4259.6,2.0475]
[1760394863955,0.42417884,4259.7,4259.6,2.46969]
[1760394864450,0.00199884,4259.7,4259.6,2.46969]
[1760394864852,0.42212,4260.3,4260.2,1.14302]
[1760394865151,3.62989,4260.7,4260.6,0.7209]
[1760394865344,3.62989,4260.7,4260.6,6.82099]
[1760394865751,3.2078,4260.7,4260.6,6.82099]
[1760394865951,3.63183596,4260.7,4260.6,6.82099]
[1760394866351,0.00195596,4260.7,4260.6,6.82099]
[1760394866957,3.62983,4261.2,4260.6,6.82099]
[1760394866958,3.2078,4261.2,4261.1,0.7209]
[1760394867261,0.42203,4261.3,4261.1,6.0886]
[1760394867556,0.42203,4261.3,4261.2,0.7209]
[1760394867757,0.61803,4261.3,4261.2,0.7209]
[1760394868058,0.4239416,4261.3,4261.2,0.7209]
[1760394872461,0.4239416,4261.3,4261.2,1.14293]
[1760394874258,0.4239416,4261.3,4261.2,0.7209]
[1760394874564,0.6199416,4261.3,4261.2,6.3969]
[1760394875161,0.4239416,4261.3,4261.2,6.3969]
[1760394875760,0.8159416,4261.3,4261.2,0.5156]
[1760394875964,0.8159416,4261.3,4261.2,0.7209]
[1760394876661,0.4239416,4261.3,4261.2,0.7209]
[1760394881363,0.0019116,4261.3,4261.2,1.14293]
[1760394881563,0.4239316,4261.3,4261.2,1.14293]
[1760394882066,0.4239316,4261.3,4261.2,0.7209]
[1760394882561,0.4239316,4261.3,4261.2,1.14293]
[1760394888467,0.4239316,4261.3,4261.2,0.7209]
[1760394888863,0.4239316,4261.3,4261.2,6.3959]
[1760394888864,0.6198316,4261.3,4261.2,6.3959]
[1760394889268,0.6198316,4261.3,4261.2,0.7209]
[1760394889466,0.8157316,4261.3,4261.2,6.3959]
[1760394891972,4.02184,4261.1,4261.0,0.8757]
[1760394896476,4.02184,4261.1,4261.0,1.7987]
[1760394900282,4.14434,4261.1,4261.0,1.2525]
[1760394900478,7.82338117,4261.1,4261.0,0.923]
[1760394900875,7.82338117,4261.1,4261.0,1.2525]
[1760394901078,4.59784758,4261.1,4261.0,1.7914]
[1760394901384,4.20584758,4261.1,4261.0,1.7914]
[1760394901883,4.40184758,4261.1,4261.0,1.7914]
[1760394903486,3.82584,4261.1,4261.0,1.7914]
[1760394903782,3.62984,4261.1,4261.0,1.7914]
[1760394903981,3.2078,4261.1,4261.0,2.21345]
[1760394910583,0.42203,4261.2,4261.1,0.7411]
[1760394912792,0.42203,4261.2,4261.1,1.16314]
[1760394915294,0.42203,4261.2,4261.1,0.7411]
[1760394915592,4.02153,4261.2,4261.1,0.7411]
[1760394915782,3.62983,4261.2,4261.1,0.7411]
[1760394916184,3.82553,4261.2,4261.1,0.7411]
[1760394919589,3.62983,4261.2,4261.1,0.7411]
[1760394921602,3.82553,4261.2,4261.1,0.7411]
[1760394928600,0.61773,4261.2,4261.1,0.7411]
[1760394931908,0.81343,4261.2,4261.1,0.7411]
[1760394933216,0.42203,4261.2,4261.1,0.7411]
[1760394934808,0.42203,4261.2,4261.1,1.16314]
[1760394935013,0.0019116,4261.3,4261.2,1.16193]
[1760394935209,0.0019116,4261.3,4261.2,6.83493]
[1760394938514,0.42191,4262.5,4262.3,0.42192]
[1760394938814,0.61761,4262.5,4262.4,0.7399]
[1760394939010,0.61761,4262.5,4262.4,1.16181]
[1760394939011,0.57641532,4262.5,4262.4,1.16181]
[1760394939620,0.57808544,4262.5,4262.4,1.16433593]
[1760394940014,0.00167012,4262.5,4262.4,1.16433593]
[1760394946213,0.022,4262.8,4262.4,0.74242593]
[1760394946414,3.62959,4263.7,4263.6,0.7495]
[1760394946716,3.62959,4263.7,4263.6,6.84229]
[1760394947321,3.2102892,4263.7,4263.6,6.84229]
[1760394947521,3.2078,4264.7,4263.7,1.05446]
[1760394947721,3.2078,4264.7,4264.6,0.7495]
[1760394947923,3.82498,4264.7,4264.6,6.4205]
[1760394948124,3.62948,4264.7,4264.6,6.4205]
[1760394948422,3.2078,4264.7,4264.6,6.4205]
[1760394948727,3.20987194,4264.7,4264.6,6.4205]
[1760394949436,3.01584034,4264.7,4264.6,6.4205]
[1760394949816,0.00207194,4264.7,4264.6,6.4205]
[1760394952818,0.00207194,4264.7,4264.6,0.7495]
[1760394953024,0.00207194,4264.7,4264.6,6.4195]
[1760394954231,0.00207194,4264.7,4264.6,7.3401]
[1760394954432,0.00207194,4264.7,4264.6,1.6701]
[1760394954831,0.00207194,4264.7,4264.6,7.3391]
[1760394955526,0.00207194,4264.7,4264.6,1.6701]
[1760394955527,3.60367194,4264.7,4264.6,1.6701]
[1760394955732,3.72677194,4264.7,4264.6,0.9206]
[1760394956626,3.72677194,4264.7,4264.6,1.2534]
[1760394957423,3.72677194,4264.7,4264.6,0.9206]
[1760394957725,3.72677194,4264.7,4264.6,1.2534]
[1760394960632,4.14845194,4264.7,4264.6,1.2534]
[1760394961736,4.02535194,4264.7,4264.6,1.4607]
[1760394961927,4.02535194,4264.7,4264.6,1.6796]
[1760394967834,3.63155194,4264.7,4264.6,1.6796]
[1760394970236,3.63155194,4264.7,4264.6,2.10129]
[1760394970742,0.42375194,4264.7,4264.6,2.10129]
[1760394972741,0.42375194,4264.7,4264.6,1.6796]
[1760394974245,4.20297755,4264.7,4264.6,1.6796]
[1760394975448,4.59497755,4264.7,4264.6,1.6796]
[1760394975648,4.71687755,4264.7,4264.6,1.2534]
[1760394975846,0.3902,4264.3,4264.0,0.3254]
[1760394976147,0.61693,4263.2,4263.1,0.7549]
[1760394976343,3.82473,4263.2,4263.1,0.7549]
[1760394977041,3.62963,4263.2,4263.1,0.7549]
[1760394978144,3.82473,4263.2,4263.1,0.7549]
[1760394978351,4.14173,4263.2,4263.1,0.3254]
[1760394978550,4.71282898,4263.2,4263.1,0.3254]
[1760394979448,0.5121,4263.1,4263.0,0.666]
[1760394979641,0.96129898,4263.1,4263.0,0.666]
[1760394980542,0.3902,4263.1,4263.0,0.8796]
[1760394982045,0.5121,4263.1,4263.0,0.4501]
[1760394984143,0.1951,4263.1,4263.0,0.8796]
[1760394984450,3.62963,4263.2,4263.1,0.3254]
[1760394984652,4.01983,4263.2,4263.1,0.5413]
[1760394985246,4.14173,4263.2,4263.1,0.3254]
[1760394985752,4.01983,4263.2,4263.1,0.5413]
[1760394988354,4.14173,4263.2,4263.1,0.3254]
[1760394989151,0.61697,4262.8,4262.7,0.3568]
[1760394989348,0.93397,4262.8,4262.7,0.3568]
[1760394991056,0.81207,4262.8,4262.7,0.8981]
[1760394991251,0.42187,4262.8,4262.7,1.1117]
[1760394991455,0.81207,4262.8,4262.7,1.1117]
[1760394991758,0.93397,4262.8,4262.7,1.1117]
[1760394993457,0.93397,4262.8,4262.7,0.3568]
[1760394994156,0.93397,4262.8,4262.7,0.6822]
[1760394994563,4.14177,4262.8,4262.7,0.6822]
[1760394996659,4.14177,4262.8,4262.7,0.3568]
[1760394996853,9.68887,4262.8,4262.7,0.8981]
[1760394997053,9.68887,4262.8,4262.7,1.1117]
[1760394998060,4.01987,4262.8,4262.7,1.1117]
[1760394998257,9.68887,4262.8,4262.7,1.1117]
[1760394998455,4.01987,4262.8,4262.7,1.1117]
[1760394998754,2.88258681,4262.8,4262.7,1.53358]
[1760394998949,3.62962,4263.3,4263.2,1.17673]
[1760394999259,3.62962,4263.3,4263.2,0.7549]
[1760394999661,3.82472,4263.3,4263.2,0.7549]
[1760395000447,4.01982,4263.3,4263.2,0.3254]
[1760395000654,0.93394,4263.1,4263.0,0.4547]
[1760395001153,0.81204,4263.1,4263.0,0.8842]
[1760395001458,0.93394,4263.1,4263.0,0.6706]
[1760395001657,0.81204,4263.1,4263.0,0.6706]
[1760395001857,0.81204,4263.1,4263.0,0.8842]
[1760395002460,0.93394,4263.1,4263.0,0.4547]
[1760395003062,0.93394,4263.1,4263.0,0.6706]
[1760395003262,0.81204,4263.1,4263.0,0.6706]
[1760395004153,0.81204,4263.1,4263.0,0.8842]
[1760395005358,0.61694,4263.1,4263.0,0.8842]
[1760395005758,3.2078,4263.3,4263.1,0.3304]
[1760395005959,3.2078,4263.3,4263.2,0.7525]
[1760395006160,3.62963,4263.3,4263.2,0.7525]
[1760395006465,3.62962,4263.3,4263.2,1.17433]
[1760395012567,0.42182,4263.3,4263.2,1.17433]
[1760395018774,0.81262,4263.3,4263.2,0.7525]
[1760395019976,0.93472,4263.3,4263.2,0.3304]
[1760395020171,4.14252,4263.3,4263.2,0.3304]
[1760395020475,0.3908,4262.6,4262.5,0.8851]
[1760395020877,0.81269,4262.6,4262.5,0.8851]
[1760395022972,0.42189,4262.6,4262.5,0.8851]
[1760395023177,0.42184,4263.1,4263.0,0.3385]
[1760395023371,0.42184,4263.1,4263.0,0.5628]
[1760395023572,0.61724,4263.1,4263.0,0.8815]
[1760395027776,0.42184,4263.1,4263.0,0.8815]
[1760395028179,0.61724,4263.1,4263.0,0.8815]
[1760395028378,1.18918081,4263.1,4263.0,0.8815]
[1760395032681,0.42184,4263.1,4263.0,0.8815]
[1760395033078,0.42184,4263.1,4263.0,1.30335]
[1760395033584,0.42184,4263.1,4263.0,0.8815]
[1760395033780,0.42184,4263.1,4263.0,1.30335]
[1760395037991,0.42183,4263.2,4263.1,1.18053]
[1760395039682,3.2078,4264.3,4264.2,0.4324]
[1760395039981,0.42172,4264.3,4264.2,0.7587]
[1760395040286,0.61712,4264.3,4264.2,0.7587]
[1760395040488,0.42172,4264.3,4264.2,0.7587]
[1760395041675,0.42172,4264.3,4264.2,1.18043]
[1760395041880,0.42169,4264.6,4264.5,0.8897]
[1760395042275,0.00207194,4264.7,4264.5,0.8897]
[1760395042482,0.00207194,4264.7,4264.6,1.18039]
[1760395046183,0.00207194,4264.7,4264.6,0.7587]
[1760395047089,0.39287194,4264.7,4264.6,0.7587]
[1760395048388,0.54379,4264.6,4264.5,0.131]
[1760395048690,0.54379,4264.6,4264.0,3.3388]
[1760395048691,0.93461,4264.4,4264.3,0.3263]
[1760395048881,0.42171,4264.4,4264.3,0.7587]
[1760395049897,0.42171,4264.4,4264.3,6.4247]
[1760395052894,0.42171,4264.4,4264.3,6.84642]
[1760395053694,0.4217,4264.6,4264.5,0.42169]
[1760395053891,0.4217,4264.6,4264.5,1.31179]
[1760395054194,0.42375194,4264.7,4264.6,1.18969]
[1760395054498,0.42375194,4264.7,4264.6,6.85469]
[1760395054700,0.00207194,4264.7,4264.6,6.85469]
[1760395063903,0.00207194,4264.7,4264.6,7.20939]
[1760395073107,0.81855,4266.1,4266.0,0.8726]
[1760395073311,1.51155124,4266.1,4266.0,0.311]
[1760395074011,1.51355199,4266.1,4266.0,0.31292906]
[1760395074214,1.51355199,4266.1,4266.0,0.44332906]
[1760395078920,4.72135199,4266.1,4266.0,0.44332906]
[1760395079415,4.72135199,4266.1,4266.0,0.31292906]
[1760395079816,0.397,4265.7,4265.6,0.311]
[1760395080021,0.62015,4265.1,4265.0,0.8726]
[1760395080215,0.81865,4265.1,4265.0,0.8726]
[1760395081022,0.81865,4265.1,4265.0,0.87468881]
[1760395082817,0.62015,4265.1,4265.0,0.87468881]
[1760395083023,0.42165,4265.1,4265.0,1.29634881]
[1760395089123,0.42164,4265.2,4265.1,0.63683]
[1760395089327,3.2078,4265.5,4265.4,1.16382]
[1760395089625,3.82791,4265.5,4265.4,6.4052]
[1760395089926,4.02641,4265.5,4265.4,6.82682]
[1760395091025,3.82791,4265.5,4265.4,6.82682]
[1760395093220,3.82791,4265.5,4265.4,7.18042]
[1760395094228,4.15051,4265.5,4265.4,0.6646]
[1760395094428,4.71969255,4265.5,4265.4,0.6646]
[1760395095029,4.71969255,4265.5,4265.4,0.3536]
[1760395095641,4.71969255,4265.5,4265.4,0.6756]
[1760395096129,4.71969255,4265.5,4265.4,0.3536]
[1760395096329,0.94295,4265.1,4265.0,0.00208881]
[1760395096531,0.94299,4264.6,4264.5,0.4441]
[1760395096726,0.1986,4264.3,4264.2,0.322]
[1760395096926,0.5213,4264.3,4264.2,0.322]
[1760395097430,0.3972,4264.3,4264.2,0.75875654]
[1760395101928,0.42171,4264.4,4264.3,1.17772]
[1760395102136,0.54575,4265.1,4264.2,0.00275654]
[1760395102137,0.6203,4264.6,4264.5,0.8795]
[1760395102636,0.8189,4264.6,4264.5,0.8795]
[1760395103331,3.2078,4265.0,4264.9,1.17766]
[1760395103835,3.605,4265.0,4264.9,1.17766]
[1760395104032,3.7291,4265.0,4264.9,0.74366]
[1760395104233,3.605,4265.0,4264.9,1.17766]
[1760395104435,3.4064,4265.0,4264.9,1.17766]
[1760395109436,3.82806,4265.0,4264.9,1.17766]
[1760395109934,3.4064,4265.0,4264.9,1.17766]
[1760395110635,4.15076,4265.0,4264.9,0.322]
[1760395110940,4.02666,4265.0,4264.9,0.5306]
[1760395111140,4.02666,4265.0,4264.9,0.756]
[1760395113729,0.42164,4265.2,4265.1,0.42164]
[1760395113933,0.62024,4265.2,4265.1,1.17764]
[1760395114241,0.62024,4265.2,4265.1,0.756]
[1760395114440,0.81884,4265.2,4265.1,0.756]
[1760395115040,0.81884,4265.2,4265.1,1.17765]
[1760395116344,3.62943,4265.3,4265.2,1.17764]
[1760395116643,3.82803,4265.3,4265.2,1.17764]
[1760395116841,4.02663,4265.3,4265.2,0.756]